Workbook

Sheet Indice
B1: Sociedad: | C1: BIOTEC DEL PARAGUAY S.A. | D1: <-- Colocar Nombre de la Sociedad
S2: 1 | T2: Enero
S3: 2 | T3: Febrero
S4: 3 | T4: Marzo
S5: 4 | T5: Abril
A6: Fecha Presentación: | B6: 2021-06-30 | C6: <-- Completar Fecha en formato (DD/MM/AAA) | S6: 5 | T6: Mayo
S7: 6 | T7: Junio
S8: 7 | T8: Julio
C9: INDICE | D9: REF. | S9: 8 | T9: Agosto
B10: Informacion General | S10: 9 | T10: Septiembre
C11: Descripción de la naturaleza y del negocio de la Sociedad | D11: Nota 1 | S11: 10 | T11: Octubre
C12: Resumen de las principales políticas contables | D12: Nota 2 | S12: 11 | T12: Noviembre
B13: Balance General | D13: BG | S13: 12 | T13: Diciembre
C14: Efectivo y equivalente de efectivo | D14: Nota 3
C15: Inversiones temporales | D15: Nota 4
C16: Cuentas por cobrar comerciales | D16: Nota 5
C17: Otros créditos | D17: Nota 6
C18: Cuentas por cobrar comerciales | D18: Nota 5
C19: Inventarios | D19: Nota 7
C20: Inversión en asociadas | D20: Nota 8
C21: Propiedades, planta y equipo | D21: Nota 9
C22: Activos disponibles para la venta | D22: Nota 10
C23: Activos intangibles | D23: Nota 11
C24: Goodwill | D24: Nota 12
C25: Cuentas por pagar comerciales | D25: Nota 13
C26: Préstamos a corto plazo | D26: Nota 14
C27: Porción corriente de la deuda a largo plazo | D27: Nota 15
C28: Remuneraciones y cargas sociales a pagar | D28: Nota 16
C29: Impuestos a pagar | D29: Nota 17
C30: Provisiones | D30: Nota 18
C31: Otros pasivos corrientes | D31: Nota 19
C32: Prestamos a largo plazo | D32: Nota 14
C33: Otros pasivos no corrientes | D33: Nota 19
C34: Capital integrado | D34: Nota 20
C35: Reserva de revalúo | D35: Nota 21
C36: Reserva legal | D36: Nota 21
C37: Reservas estatutarias | D37: Nota 21
C38: Reservas facultativas | D38: Nota 21
C39: Diferencia transitoria por conversión | D39: Nota 22
C40: Resultados acumulados | D40: Nota 23
C41: Interés minoritario | D41: Nota 24
B42: Estado de Resultados | D42: ER
C43: Ventas | D43: Nota 25
C44: Costo de ventas | D44: Nota 26
C45: Gastos de ventas | D45: Nota 27
C46: Gastos administrativos | D46: Nota 27
C47: Otros ingresos y gastos operativos | D47: Nota 28
C48: Ingresos financieros - neto | D48: Nota 29
C49: Gastos financieros - neto | D49: Nota 29
C50: Resultado de inversiones en asociadas | D50: Nota 30
C51: Resultado participación minoritaria | D51: Nota 31
C52: Impuesto a la renta | D52: Nota 32
C53: Resultado extraordinario neto de impuesto a la renta | D53: Nota 33
C54: Resultado sobre actividades discontinuadas neto de impuesto a la renta | D54: Nota 34
C55: Utilidad/(Pérdida) neta del año | D55: Nota 35
C56: Utilidad neta por acción ordinaria | D56: Nota 35
B57: Estado de Evolución del Patrimonio Neto | D57: EVPN
B58: Estado de Flujos de Efectivo | D58: EFE
B59: Otras Notas de los Estados Financieros
C60: Activos gravados | D60: Nota 36
C61: Contingencias y compromisos | D61: Nota 37
C62: Impuesto diferido | D62: Nota 38
C63: Hechos posteriores | D63: Nota 39
C64: Saldos y transacciones con partes relacionadas | D64: Nota 40

Sheet BG
D1: =Indice!C1 -> BIOTEC DEL PARAGUAY S.A. | E1: Indice
A7: BALANCE GENERAL
A8: =IFERROR(IF(Indice!B6="","Al dia... de mes… de año 2XX2…","Al "&DAY(Indice!B6)&" de "&VLOOKUP(MONTH(Indice!B6),Indice!S:T,2,0)&" de "&YEAR(Indice!B6)),"Al dia... de mes… de año 2XX2…") -> Al 30 de Junio de 2021
A9: (En miles de guaraníes)
E11: Nota | F11: 2021 | G11: 2020
B12: ACTIVOS
B13: Activos Corrientes
C14: Efectivo y equivalente de efectivo | E14: 3 | F14: 2538154674 | G14: 3404995318
C15: Inversiones temporales | E15: 4 | F15: 806673517 | G15: 0
C16: Cuentas por cobrar comerciales | E16: 5 | F16: 38989191078 | G16: 38817046724
C17: Otros créditos | E17: 6 | F17: 11211564382 | G17: 7958798009
C18: Inventarios | E18: 7 | F18: 41612896705 | G18: 24050116279
C19: Total activos corrientes | F19: =SUM(F14:F18) -> 95158480356 | G19: =SUM(G14:G18) -> 74230956330
B20: Activos no Corrientes
C21: Otros créditos | E21: 6 | F21: 47298184 | G21: 144916747
C22: Cuentas por cobrar comerciales | E22: 5 | F22: 0 | G22: 0
C23: Inversión en asociadas | E23: 8 | F23: 0 | G23: 0
C24: Propiedades, planta y equipo/Bienes de uso, neto | E24: 9 | F24: 2.171325105e+10 | G24: 18150442729
C25: Activos disponibles para la venta | E25: 10 | F25: 0 | G25: 0
C26: Activos intangibles | E26: 11 | F26: 84938100 | G26: 117399004
C27: Goodwill | E27: 12 | F27: 0 | G27: 0
C28: Total activos no corrientes | F28: =SUM(F21:F27) -> 2.184548733e+10 | G28: =SUM(G21:G27) -> 18412758480
B29: Total Activos | F29: =+F19+F28 -> 1.170039677e+11 | G29: =+G19+G28 -> 92643714810
B30: PASIVOS Y PATRIMONIO NETO
B31: Pasivos corrientes | F31: -1
C32: Cuentas por pagar comerciales | E32: 13 | F32: 13675205879 | G32: 9554927425
C33: Préstamos a corto plazo | E33: 14 | F33: 2.212154962e+10 | G33: 22041834727
C34: Porción corriente de la deuda a largo plazo | E34: 15 | F34: 0 | G34: 0
C35: Remuneraciones y cargas sociales a pagar | E35: 16 | F35: 166556866 | G35: 45089432
C36: Impuestos a pagar | E36: 17 | F36: 31091641 | G36: 268208134
C37: Provisiones | E37: 18 | F37: 9687488447 | G37: 16896978364
C38: Otros pasivos corrientes | E38: 19 | F38: 2783991039 | G38: 871390485
C39: Total Pasivos Corrientes | F39: =+F32+F33+F34+F35+F36+F37+F38 -> 4.846588349e+10 | G39: =+G32+G33+G34+G35+G36+G37+G38 -> 49678428567
B40: Pasivos no corrientes
C41: Préstamos a largo plazo | E41: 14 | F41: 3.013209109e+10 | G41: 30362038358
C42: Otros pasivos no corrientes | E42: 19 | F42: 0 | G42: 0
C43: Total pasivos no corrientes | F43: =SUM(F41:F42) -> 3.013209109e+10 | G43: =SUM(G41:G42) -> 30362038358
B45: Total Pasivos | F45: =+F39+F43 -> 7.859797459e+10 | G45: =+G39+G43 -> 80040466925
B46: Patrimonio Neto
C47: Capital integrado | E47: 20 | F47: 15000000000 | G47: 12000000000
C48: Reserva de revalúo | E48: 21 | F48: 2195468553 | G48: 770442553
C49: Reserva legal | E49: 21 | F49: 2336722151 | G49: 1618994215
C50: Reservas estatutarias | E50: 21 | F50: 0 | G50: 0
C51: Reservas facultatitvas | E51: 21 | F51: 0 | G51: 0
C52: Diferencia transitoria por conversión | E52: 22 | F52: 0 | G52: 0
C53: Resultados acumulados | E53: 23 | F53: 18873802393 | G53: -1786188882
C54: Subtotal | F54: 38405993097 | G54: 12603247886
C55: Interés minoritario | E55: 24 | F55: 0 | G55: 0
B56: Total Patrimonio Neto | F56: =F54 -> 38405993097 | G56: =G54 -> 12603247886
B57: Total Pasivos y Patrimonio Neto | F57: =+F45+F56 -> 1.170039677e+11 | G57: =+G45+G56 -> 92643714811
B59: Las notas que se acompañan forman parte integrante de estos estados.
B64: Lic. Marcela Insfran Lic. Fátima Codas Gonzalo Samaniego Zubizarreta
B65: Contador Síndico Títular Presidente

Sheet ER
A1: =Indice!C1 -> BIOTEC DEL PARAGUAY S.A. | B1: Indice | D1: =ER!A4 -> 
A7: ESTADO DE RESULTADOS
A8: =IFERROR(IF(Indice!B6="","Al dia... de mes… de año 2XX2…","Al "&DAY(Indice!B6)&" de "&VLOOKUP(MONTH(Indice!B6),Indice!S:T,2,0)&" de "&YEAR(Indice!B6)),"Al dia... de mes… de año 2XX2…") -> Al 30 de Junio de 2021
A9: Comparativo con igual período del año anterior
A10: (En miles de guaraníes)
B12: Nota | C12: =IFERROR(IF(Indice!B6="","2XX2",YEAR(Indice!B6)),"2XX2") -> 2021 | D12: 2020
A13: Ventas | B13: 25 | C13: 54056033645 | D13: 20581300233
A14: Costo de ventas | B14: 26 | C14: -29101607167 | D14: -11041326511
A15: Utilidad bruta | C15: 24954426478 | D15: 9539973722
A16: Gastos de ventas | B16: 27 | C16: -9735494455 | D16: -4566228421
A17: Gastos administrativos | B17: 27 | C17: -4428498532 | D17: -3568412704
A18: Otros ingresos y gastos operativos | B18: 28 | C18: 531069575 | D18: -787889993
A19: Resultado operativo | C19: -13632923412 | D19: -8922531118
A20: Ingresos financieros - neto | B20: 29 | C20: 0 | D20: 0
A21: Gastos financieros - neto | B21: 29 | C21: -3084531453 | D21: -2403631486
A22: Subtotal | C22: -3084531453 | D22: -2403631486
A23: Resultado de inversiones en asociadas | B23: 30 | C23: 0 | D23: 0
A24: Resultados ordinarios antes de impuesto a la renta y participación minoritaria | C24: 8236971613 | D24: -1786188882
A25: Resultado participación minoritaria | B25: 31 | C25: 0 | D25: 0
A26: Resultado ordinario antes del impuesto a la renta
A27: Impuesto a la renta | B27: 32 | C27: 0 | D27: 0
A28: Resultado neto de actividades ordinarias | C28: 8236971613 | D28: -1786188882
A29: Resultado extraordinario neto de impuesto a la renta | B29: 33 | C29: 0 | D29: 0
A30: Resultado sobre actividades discontinuadas neto de impuesto a la renta | B30: 34 | C30: 0 | D30: 0
A31: Utilidad/(Pérdida) neta del año | C31: 8236971613 | D31: -1786188882
A32: Utilidad neta por acción ordinaria | B32: 35 | C32: 549131.4409 | D32: -148849.0735
A35: Las notas que se acompañan forman parte integrante de estos estados.
A41: Lic. Cynthia P. Lezcano Lic. Fátima Codas Gonzalo Samaniego Zubizarreta
A42: Contador Síndico Títular Presidente

Sheet EVPN
A1: =Indice!C1 -> BIOTEC DEL PARAGUAY S.A. | H1: Indice
F4: ESTADO DE EVOLUCIÓN DEL PATRIMONIO NETO
H5: =IFERROR(IF(Indice!B6="","Al dia... de mes… de año 2XX2…","Al "&DAY(Indice!B6)&" de "&VLOOKUP(MONTH(Indice!B6),Indice!S:T,2,0)&" de "&YEAR(Indice!B6)),"Al dia... de mes… de año 2XX2…") -> Al 30 de Junio de 2021
H6: Comparativo con igual periodo del año anterior
A7: (En miles de guaraníes)
C10: Aporte de los propietarios | L10: Ganancias reservadas
C11: Capital suscripto e integrado | D11: Aporte para | F11: Primas de emisión | H11: Reserva de revalúo | J11: Reserva de revalúo técnico | L11: Reserva legal | N11: Reserva facultativa | P11: Resultados acumulados | R11: Interes Minoritario | T11: Total
D12: aumento de capital | P12: Total
A14: Saldo al 31 de Diciembre de 2019 | C14: 10000000000 | D14: 0 | F14: 0 | G14: 0 | H14: 770442553 | J14: 0 | L14: 993626716 | N14: 0 | P14: 22272345864 | T14: =+SUM(C14:S14) -> 34036415133
A15: Cambio en política contable (Nota….)
A16: Saldo reestructurado | C16: 10000000000 | F16: 0 | H16: 770442553 | J16: 0 | L16: 993626716 | N16: 0 | P16: 22272345864 | R16: =+R14+R15 -> 0 | T16: =+SUM(C16:S16) -> 34036415133
A18: Integración del capital social
A20: Aporte para Aumento de Capital 2019 | C20: 2000000000 | H20: 0 | T20: =+SUM(C20:S20) -> 2000000000
A21: Reserva Legal | H21: 0 | L21: 625367499 | P21: -285197136 | T21: 340170363
A22: Reserva Fcultativa | T22: 0
A23: Revalúo de activos fijos | H23: 0 | T23: =+SUM(C23:S23) -> 0
A24: Dividendos a Pagar | H24: 0 | P24: -5962000000 | T24: -5962000000
A25: Revalúo técnico | J25: 1425026000 | T25: 1425026000
A26: Resultado del año | P26: 12507349978 | T26: 12507349978
A28: Saldo al 31 de Diciembre de 2020 | C28: 12000000000 | D28: 0 | F28: 0 | G28: 0 | H28: 770442553 | J28: 1425026000 | L28: 1618994215 | N28: 0 | P28: 28532498706 | R28: =+R16+SUM(R20:R26) -> 0 | T28: =+T16+SUM(T20:T26) -> 44346961474
A29: Distribución de dividendos s/Acta de Asamblea General Ordinaria N°… de fecha………
A30: Revalúo de activos fijos | T30: =+SUM(C30:S30) -> 0
A31: Desafectación de la reserva de revalúo técnico
A32: Aporte para Aumento de Capital 2020 | C32: 3000000000 | H32: 0 | P32: 0 | T32: =+SUM(C32:S32) -> 3000000000
A33: Reserva Legal | H33: 0 | L33: 717727936 | P33: =-L33 -> -717727936 | T33: =+SUM(C33:S33) -> 0
A34: Reserva Fcultativa | P34: 0 | T34: =+SUM(C34:S34) -> 0
A35: Revalúo de activos fijos | H35: 0 | P35: 0 | T35: 0
A36: Dividendos a Pagar | H36: 0 | P36: =+-(P28+P32+P33) -> -27814770770 | T36: =+SUM(C36:S36) -> -27814770770
A37: Revalúo técnico | J37: 0 | P37: 0 | T37: =+SUM(C37:S37) -> 0
A38: Resultado del año | P38: =+[1]BG!F53 -> 18873802393 | T38: =+SUM(C38:S38) -> 18873802393
A40: Saldo al 30 de Junio de 2021 | C40: =SUM(C32:C39)+C28 -> 15000000000 | D40: 0 | F40: =SUM(F32:F39)+F28 -> 0 | G40: 0 | H40: =SUM(H32:H39)+H28 -> 770442553 | J40: =SUM(J32:J39)+J28 -> 1425026000 | L40: =SUM(L32:L39)+L28 -> 2336722151 | N40: =SUM(N32:N39)+N28 -> 0 | P40: =SUM(P32:P39)+P28 -> 18873802393 | R40: =SUM(R32:R39)+R28 -> 0 | T40: =SUM(T32:T39)+T28 -> 38405993097
T41: =+T40-BG!F56 -> 0
A42: Las notas que se acompañan forman parte integrante de estos estados.

Sheet EFE
A1: =Indice!C1 -> BIOTEC DEL PARAGUAY S.A.
A5: ESTADO DE FLUJOS DE EFECTIVO (Método directo)
A6: =IFERROR(IF(Indice!B6="","Al dia... de mes… de año 2XX2…","Al "&DAY(Indice!B6)&" de "&VLOOKUP(MONTH(Indice!B6),Indice!S:T,2,0)&" de "&YEAR(Indice!B6)),"Al dia... de mes… de año 2XX2…") -> Al 30 de Junio de 2021
A7: Comparativo con igual periodo del año anterior
A8: (En miles de guaraníes)
B11: =IFERROR(IF(Indice!B6="","2XX2",YEAR(Indice!B6)),"2XX2") -> 2021 | C11: 2020
A13: FLUJO DE EFECTIVO DE ACTIVIDADES OPERATIVAS
A14: Cobranzas efectuadas a clientes | B14: 126752277205 | C14: 37986189170
A15: Pagos efectuados a proveedores y empleados | B15: -91458253203 | C15: -4806131863
A16: Efectivo generado por las operaciones | B16: -11659529986 | C16: -24207341063
A17: Intereses pagados | B17: 0
A18: Otros ingresos y (egresos) - neto | B18: 235260686
A19: Pagos de impuesto a la renta | B19: -1777770815 | C19: -1233933237
A20: Flujo neto de efectivo de actividades operativas | B20: 22091983887 | C20: 7738783007
A22: FLUJO DE EFECTIVO DE ACTIVIDADES DE INVERSIÓN
A23: Adquisición de bienes de uso | B23: -7044229377 | C23: -3188632386
A24: Adquisición de bienes Curtiembre - fideicomitida | B24: 0
A25: Ventas de activos fijos | B25: 0 | C25: 0
A26: Ventas de bienes de uso
A27: Intereses cobrados sobre inversiones
A28: Aquisición de inversiones
A29: Flujo neto de efectivo de actividades de inversión | B29: -7044229377 | C29: -3188632386
A31: FLUJO DE EFECTIVO DE ACTIVIDADES DE FINANCIACIÓN
A32: (Disminución) Incremento de préstamos | B32: 835324483 | C32: -8337850188
A33: Aportes de capital recibidos | B33: -2000000000
A34: Dividendos pagados | B34: 0
A35: Flujo neto de efectivo de actividades de financiamiento | B35: -1164675517 | C35: -8337850188
A37: (Disminución) Incremento neto de efectivo | B37: 13883078993 | C37: -3787699567
A38: Efecto estimado de la diferencia de cambio sobre el saldo de efectivo | B38: 0 | C38: 0
A39: Efectivo al principio del año | B39: 2007017468 | C39: 5794717035
A41: Efectivo al final del periodo | B41: 2538154674 | C41: 3404995318
B42: 0
A43: Las notas que se acompañan forman parte integrante de estos estados.

Sheet Nota1
A1: =Indice!C1 -> BIOTEC DEL PARAGUAY S.A. | I1: BG
A6: NOTAS A LOS ESTADOS FINANCIEROS CORRESPONDIENTES AL PERIODO TERMINADO | H6: =IFERROR(IF(Indice!B6="","Al dia... de mes… de año 2XX2…","Al "&DAY(Indice!B6)&" de "&VLOOKUP(MONTH(Indice!B6),Indice!S:T,2,0)&" de "&YEAR(Indice!B6)),"Al dia... de mes… de año 2XX2…") -> Al 30 de Junio de 2021
A7: Presentadas en forma comparativa con el periodo terminado | F7: =IFERROR("Al "&DAY(Indice!B6)&" de "&VLOOKUP(MONTH(Indice!B6),Indice!S:T,2,0)&" de "&YEAR(Indice!B6-365),"Al dia... de mes… de año 2XX1…") -> Al 30 de Junio de 2020
A11: NOTA 1 – DESCRIPCIÓN DE LA NATURALEZA Y DEL NEGOCIO DE LA COMPAÑÍA
A12: Antecedentes de la sociedad: naturaleza jurídica, antecedentes sobre la constitución de la sociedad y reformas estatutarias, actividad principal y secundarias.
A13: DENOMINACION: BIOTEC DEL PARAGUAY S.A.
A15: DOMICILIO LEGAL: MCAL. ESTIGARRIBIA Nº 1097 E/BRASIL
A17: ACTIVIDAD PRINCIPAL: IMPORTACION DE INSUMOS, MATERIALES, EQUIPOS Y REACTIVOS PARA LABORATORIOS.
A19: INSCRIPCION EN EL REGISTRO PUBLICO DE COMERCIO: Del estatuto o contrato social Nº 318, de fecha 01/08/1994. De las modificaciones: Nº 22 de fecha 30 de noviembre de 1996, Nº 478, de fecha 18 de setiembre del 2001, Nº 137 de fecha 25 de mayo del 2002, Nº 285, de fecha 20 de julio del 2005, Nº 2, de fecha 2 de enero del 2006, Nº 147 de fecha 11 de marzo del 2008, Nº 78 de fecha 22 de febrero del 2017, Nº 873 de fecha 28 de diciembre de 2017.
A21: INSCRIPCION EN LA COMISION NACIONAL DE VALORES: según ACTA N° 70/19 DE FECHA 10/09/2019 - RES CNV N°85E/19
A23: FECHA DE VENCIMIENTO DEL ESTATUTO O CONTRATO SOCIAL: Año 2.084
A25: COMPOSICION DEL CAPITAL: al 30 de junio de 2021.

Sheet Nota 2
A1: =Indice!C1 -> BIOTEC DEL PARAGUAY S.A. | M1: BG
A6: NOTA 2 - RESUMEN DE LAS PRINCIPALES POLÍTICAS CONTABLES
A7: Resumen de las principales políticas contables: a modo referencial, se incluyen las siguientes revelaciones de políticas contables en estados financieros de uso general que podrá ser tenida en consideración por las sociedades emisoras para la preparación de este capítulo de los estados financieros:
A10: a. Bases de contabilización (Según NIF Bases de preparación de los Estados Financieros)
A11: Los estados financieros se han preparado siguiendo los criterios de las Normas de Información Financiera (NIF) emitidas por el Consejo de Contadores Públicos del Paraguay sobre la base de costos históricos, excepto para el caso de activos y pasivos en moneda extranjera y las propiedades, planta y equipo según se explica en los puntos c ) y k), y no reconocen en forma integral los efectos de la inflación sobre la situación patrimonial y financiera de la sociedad, sobre los resultados de sus operaciones y los flujos de efectivo, en atención a que la corrección monetaria no constituye una práctica contable obligatoria en el Paraguay.
A12: De haberse aplicado una corrección monetaria integral de los estados financieros, podrían haber surgido diferencias en la presentación de la situación patrimonial y financiera de la sociedad, en los resultados de sus operaciones y en los flujos de efectivo al 31/03/2021 , y por los ejercicios cerrados el, 31 de marzo de 2021 y 2020. Según el índice general de precios del consumo (IPC) publicado por el Banco Central del Paraguay, la inflación fue de 2,2% en el año 2020 y 2,8% en el año 2019.
A15: b. Uso de estimaciones contables
A16: La preparación de los presentes estados financieros requiere que la Gerencia de la sociedad realice estimaciones y evaluaciones que afectan el monto de los activos y pasivos registrados y contingentes, como así también los ingresos y egresos registrados en el ejercicio. Los resultados reales futuros pueden diferir de las estimaciones y evaluaciones realizadas a la fecha de preparación de los presentes estados financieros.
A18: c. Moneda extranjera
A19: Los activos y pasivos en moneda extranjera se valúan a los tipos de cambio vigentes a la fecha de cierre del ejercicio.
A20: Las diferencias de cambio originadas por fluctuaciones en los tipos de cambio producidos entre las fechas de concertación de las operaciones y su liquidación o valuación al cierre del ejercicio, son reconocidas en resultados.
C23: 2021 | I23: 2020
B24: Indicar moneda | C24: Simbología según ISO 4217 | D24: Valor TC | E24: Monto Moneda | F24: Miles de G. | H24: Indicar moneda | I24: Simbología según ISO 4217 | J24: Valor TC | K24: Monto Moneda | L24: Miles de G.
A25: Activos | B25: Dolares | C25: USD | D25: 6733.98 | E25: 1608362.791 | F25: 1.009656176e+10 | H25: Dolares | I25: USD | J25: 6793.79 | K25: 885197.45 | L25: =+J25*K25 -> 6013845584
B26: Euros | C26: € | D26: 7981.78 | E26: 0 | F26: 0 | H26: Euros | I26: € | J26: 7640.93 | K26: 624.47 | L26: =+J26*K26 -> 4771531.557
A29: Pasivos | B29: Dolares | C29: USD | D29: 6761.37 | E29: 1883107.609 | F29: 1.196023785e+10 | H29: Dolares | I29: USD | J29: 6820.47 | K29: 1180293.62 | L29: =+J29*K29 -> 8050157226
B30: Euros | C30: € | D30: 8014.93 | E30: 56380.22 | F30: 420540061 | H30: Euros | I30: € | J30: 7670.99 | K30: 21002.21 | L30: 161107742.9
A33: Posición neta | F33: 1.009656176e+10 | L33: 3458593735
A36: A la fecha de emisión de estos estados financieros, el tipo de cambio de la moneda extranjera DOLARES AMERICANOS no varió sustancialmente con respecto al vigente al 31 de Marzo 2021 de tal forma que afecte significativamente los estados financieros y de resultados de la sociedad.
A38: d. Efectivo y equivalentes de efectivo
A39: Se considerarán dentro del concepto de efectivo los saldos en efectivo, disponibilidades en cuentas bancarias y toda inversión de muy alta liquidez, con vencimiento originalmente pactado no superior a tres meses corresponde al Fondo Mutuo Crecimiento Renta Fija en guaranies.
A42: e. Inversiones
A44: A la fecha de este informe la Sociedad cuenta con una inversion en Fondo Mutuo Crecimiento Renta Fija en guaranies.
A47: f. Previsión para cuentas de dudoso cobro/incobrables
A48: La cartera de crédito de la firma se compone con casi el 100% de saldos de instituciones públicas cuyo atraso se considera normal, debido a cuestiones presupuestarias que escapan del ámbito de la firma. Cabe destacar, que las deudas con el Sector Público no preescriben, por ende, la firma no constituye previsión alguna.
A53: g. Inventarios
A54: Las existencias se valúan al menor entre su costo de adquisición o de producción y su valor neto de realización (NIF 12, párrafo 5). Para determinar el consumo (baja de inventarios) se aplica la fórmula de costeo siguientes: PPP (Precio Promedio Ponderado).
A57: h. Activos disponibles para la venta
A58: Los activos disponibles para la venta representan bienes que fueron desafectados de la actividad productiva y se mantienen con el único objetivo de ser vendidos. Los mismos se valúan, sin amortizar, al menor entre el valor de mercado de los mismos y su costo (valor libro) al momento de su designación como disponibles para la venta. LA EMPRESA NO CUENTA CON BIENES DISPONIBLES PARA LA VENTA
A61: i. Previsiones para desvalorización y deterioro de inventarios
A62: La firma tiene como política realizar inventarios físicos periodicos a fin de identificar aquellos productos deteriorados y/o vencidos, que ya no están disponibles para la venta, afectando directamente a resultados bajo la cuenta de Pérdida Mercaderías Vencidas.
A64: j. Propiedades, planta y equipo
A65: Las propiedades, planta y equipo se exponen a su costo histórico ajustado por el coeficiente de revalúo emitido por la Autoridad Tributaria, menos la correspondiente depreciación acumulada. El incremento neto por la re-expresión se acredita a la respectiva reserva patrimonial, cuyo saldo puede ser utilizado únicamente para aumentar el capital.
A66: El costo de las mejoras que extienden la vida útil de los bienes o aumentan su capacidad productiva es imputado a las cuentas respectivas del activo. Los gastos de mantenimiento son cargados a resultados.
A67: A partir del ejercicio 2020, de acuerdo a la Ley N° 6380/19 Art. 11° ... El Poder Ejecutivo podrá establecer el revalúo obligatorio de los bienes del activo fijo, cuando la variación del índice de Precios al Consumo determinado por el Banco Central del Paraguay alcance al menos 20% (veinte por ciento), acumulado desde el ejercicio en el cual se haya dispuesto el último ajuste por revalúo. El reconocimiento del revalúo obligatorio establecido por el Poder Ejecutivo formará parte de una reserva patrimonial cuyo único destino podrá ser la capitalización; el revalúo se realizará una vez que IPC alcance 20%.
A73: k. Intangibles
A74: Los intangibles se exponen a su costo incurrido menos las correspondientes amortizaciones acumuladas al cierre del año.
A75: Las amortizaciones son calculadas por el método de línea recta, es un periodo no mayor a 5 años.
A77: l. Goodwill
A78: El saldo de esta cuenta representa la diferencia entre el valor pagado y el valor razonable de los activos netos adquiridos por la operación de compra de la subsidiaria.
A79: No aplicable
A81: m. Reconocimiento de ingresos y egresos
A82: Los ingresos y egresos son reconocidos en función de su devengamiento.
A84: n. Impuesto a la renta
A85: El impuesto a la renta que se carga a los resultados del año se basa en la utilidad contable antes de este concepto, ajustada por las partidas que la ley incluye o excluye para la determinación de la utilidad gravable a la que se aplica la tasa legal vigente del impuesto y por el reconocimiento del cargo o el ingreso originado por la aplicación del impuesto diferido, si los hubiere.
A87: o. Restricciones a la distribución de utilidades
A88: A la fecha de este informe, no existen restricciones a la distribución de utilidades.
A90: p. Derechos en Fideicomiso
A91: A la fecha de éste informe no existen operaciones de la especie constituidas por la empresa.
A93: q. Otros principios, prácticas y métodos
A94: A la fecha de éste informe no existen otros principios, prácticas o métodos seguidos por la empresa.

Sheet Nota 3
A1: =Indice!C1 -> BIOTEC DEL PARAGUAY S.A. | E1: BG
A2: Obs.: Revelar situación en el caso de contar con disponibilidad restringida
A7: NOTA 3 - EFECTIVO Y EQUIVALENTE DE EFECTIVO
A8: En miles de guaranies
A9: La composición de la cuenta es la siguiente:
A11: Concepto | C11: 2021 | D11: 2020
A13: Fondo Fijo | C13: 4447781 | D13: 6241740
A14: Recaudaciones a depositar | C14: 138949186 | D14: 31354600
A15: Bancos Locales - Moneda local Guaraníes | C15: 2351709796 | D15: 3340013054
A16: Bancos Locales - Moneda extranjera Dólares | C16: 43047911 | D16: 27385924
A17: Bancos Locales - Moneda extranjera otros | C17: 0 | D17: 0
A18: Bancos en el Extranjero - Moneda extranjera Dólares | C18: 0 | D18: 0
A19: (nuevas cuentas a incluir)
A20: Total | C20: 578927651 | D20: 1813608816

Sheet Nota 4
A1: =Indice!C1 -> BIOTEC DEL PARAGUAY S.A. | D1: BG
A4: NOTA 4 - INVERSIONES TEMPORALES
A6: La composición de la cuenta es la siguiente:
B7: En miles de guaranies
A8: Concepto | B8: 2021 | C8: 2020
A9: Inversiones en Titulos del Sistema Financiero Local - Moneda Local Guaraníes | B9: 0 | C9: 0
A10: Inversiones en Titulos del Sistema Financiero Local - Moneda Extranjera Dólares | B10: 0 | C10: 0
A11: Inversiones en Titulos del Sistema Financiero Local - Moneda Extranjera otros | B11: 0 | C11: 0
A12: Inversiones en Mercado Bursatil Local - Moneda Local Guaraníes | B12: 0 | C12: 0
A13: Inversiones en Mercado Bursatil Local - Moneda Extranjera Dólares | B13: 0 | C13: 0
A14: Inversiones en Mercado Bursatil Extranjera - Moneda Extranjera Dólares | B14: 0 | C14: 0
A15: Inversiones en Mercado Bursatil Extranjera - Moneda Extranjera otros | B15: 0 | C15: 0
A16: Otras inversiones - Moneda Local Guaraníes | B16: 637863278 | C16: 0
A17: Otras inversiones - Moneda Extranjera Dólares | B17: 168810239 | C17: 0
A18: Total | B18: 518890757 | C18: 0

Sheet Nota 5
A1: =Indice!C1 -> BIOTEC DEL PARAGUAY S.A. | F1: BG
A2: Detallar cartera vencida y no vencida por clientes locales, extranjeros y partes relacionadas
A3: Se indicarán en este rubro todos los créditos a favor de la empresa provenientes de las ventas de Mercaderías y/o servicios (atendiendo a la actividades ordinarias de la empresa), separando las ventas locales en moneda nacional y/o extranjera de las ventas fuera del país en moneda nacional y/o extranjera
A5: NOTA 5 – CUENTAS POR COBRAR COMERCIALES
A6: Las cuentas a cobrar comerciales a corto plazo se integran como sigue:
C7: En miles de guaraníes
C8: 2021 | D8: 2020 | F8: Composición de la cartera de créditos por ventas | G8: 2021-06-30
A9: Deudores por ventas locales | B9: Moneda Local Guaraníes | C9: 38989191078 | D9: 38817046724 | F9: Situación | G9: Monto | H9: % Previsiones sobre Cartera
A10: Deudores por ventas locales | B10: Moneda Extranjera Dólares | C10: 0 | D10: 0 | F10: A Total Cartera no Vencida | G10: 12626607145 | H10: 0
A11: Deudores por ventas locales | B11: Moneda Extranjera otros | C11: 0 | D11: 0 | F11: B. Total Cartera Vencida | G11: 26364604427 | H11: 0
A12: Deudores por ventas en el exterior | B12: Moneda Local Guaraníes | C12: 0 | D12: 0 | F12: Composición Cartera Vencida
A13: Deudores por ventas en el exterior | B13: Moneda Extranjera Dólares | C13: 0 | D13: 0 | F13: Normal | G13: 12626607145
A14: Deudores por ventas en el exterior | B14: Moneda Extranjera otros | C14: 0 | D14: 0 | F14: En Gestión de Cobro | G14: 26364604427
A15: Deudores - Entidad relacionada | B15: Moneda Local Guaraníes | C15: 0 | D15: 0 | F15: En Gestión de Cobro Judicial | G15: 0
A16: Deudores - Entidad relacionada | B16: Moneda Extranjera Dólares | C16: 0 | D16: 0
A17: Deudores - Entidad relacionada | B17: Moneda Extranjera otros | C17: 0 | D17: 0 | F17: Total de la cartera de créditos (A+B) | G17: 38991211572
A18: Cheques adelantados recibidos de clientes | B18: Moneda Local Guaraníes | C18: 0 | D18: 0
A19: Cheques adelantados recibidos de clientes | B19: Moneda Extranjera Dólares | C19: 0 | D19: 0 | F19: (-) Total Previsiones | G19: 0
A20: Cheques adelantados recibidos de clientes | B20: Moneda Extranjera otros | C20: 0 | D20: 0
A21: Cheques rechazados | B21: Moneda Local Guaraníes | C21: 0 | D21: 0 | F21: TOTAL NETO DE LA CARTERA DE CRÉDITOS | G21: 38991211572
A22: Cheques rechazados | B22: Moneda Extranjera Dólares | C22: 0 | D22: 0
A23: Otros | B23: Moneda Local Guaraníes | C23: 0 | D23: 0 | F23: Observaciones
A24: Otros | B24: Moneda Extranjera Dólares | C24: 0 | D24: 0 | F24: Criterios de Clasificación utilizados - Cartera Vencida | G24: De | H24: A
A25: Otros | B25: Moneda Extranjera otros | C25: 0 | D25: 0 | F25: Normal | G25: 1 | H25: 30
A26: Menos Previsiones | C26: 0 | D26: 0 | F26: En Gestión de Cobro | G26: 31 | H26: 60
A27: Total | C27: 38989191078 | D27: 38817046724 | F27: En Gestión de Cobro Judicial | G27: 61 | H27: 10000
A30: Las cuentas a cobrar comerciales a largo plazo se integran como sigue:
C31: En miles de guaraníes
C32: 2021 | D32: 2020
A33: Deudores por ventas locales | B33: Moneda Local Guaraníes | C33: 0 | D33: 0
A34: Deudores por ventas locales | B34: Moneda Extranjera Dólares | C34: 0 | D34: 0
A35: Deudores por ventas locales | B35: Moneda Extranjera otros | C35: 0 | D35: 0
A36: Deudores por ventas en el exterior | B36: Moneda Local Guaraníes | C36: 0 | D36: 0
A37: Deudores por ventas en el exterior | B37: Moneda Extranjera Dólares | C37: 0 | D37: 0
A38: Deudores por ventas en el exterior | B38: Moneda Extranjera otros | C38: 0 | D38: 0
A39: Deudores - Entidad relacionada | B39: Moneda Local Guaraníes | C39: 0 | D39: 0
A40: Deudores - Entidad relacionada | B40: Moneda Extranjera Dólares | C40: 0 | D40: 0
A41: Deudores - Entidad relacionada | B41: Moneda Extranjera otros | C41: 0 | D41: 0
A42: Cheques adelantados recibidos de clientes | B42: Moneda Local Guaraníes | C42: 0 | D42: 0
A43: Cheques adelantados recibidos de clientes | B43: Moneda Extranjera Dólares | C43: 0 | D43: 0
A44: Cheques adelantados recibidos de clientes | B44: Moneda Extranjera otros | C44: 0 | D44: 0
A45: Deudores en gestión judicial | B45: Moneda Local Guaraníes | C45: 0 | D45: 0
A46: Deudores en gestión judicial | B46: Moneda Extranjera Dólares | C46: 0 | D46: 0
A47: Deudores en gestión judicial | B47: Moneda Extranjera otros | C47: 0 | D47: 0
A48: Cheques rechazados | B48: Moneda Local Guaraníes | C48: 0 | D48: 0
A49: Cheques rechazados | B49: Moneda Extranjera Dólares | C49: 0 | D49: 0
A50: Otros | B50: Moneda Local Guaraníes | C50: 0 | D50: 0
A51: Otros | B51: Moneda Extranjera Dólares | C51: 0 | D51: 0
A52: Otros | B52: Moneda Extranjera otros | C52: 0 | D52: 0
A53: Menos Previsiones | C53: 0 | D53: 0
A54: Total | C54: =+SUM($C$33:C53) -> 0 | D54: =+SUM($D$33:D53) -> 0

Sheet Nota 6
A1: =Indice!C1 -> BIOTEC DEL PARAGUAY S.A. | D1: BG
A4: NOTA 6 - OTROS CRÉDITOS
A5: En miles de guaranies
A6: El rubro de otros créditos se compone como sigue:
A8: Corrientes | E8: No corrientes
A10: Concepto | B10: 2021 | C10: 2020 | E10: Concepto | F10: 2021 | G10: 2020
A11: Anticipos a proveedores | B11: 103023928 | C11: 337401243 | E11: Garantía de Alquiler
A12: Anticipos a proveedores exterior | B12: 6647795964 | C12: 5991232038 | E12: I.V.A. Crédito fiscal
A13: Gastos pagados por adelantado | B13: 70474467 | C13: 81060916 | E13: Gastos de desarrollo | F13: 47298184 | G13: 39981820
A14: Anticipo Impuesto a la Renta | B14: 252069478 | C14: 0 | E14: INTERESES A DEVENGAR - BONOS LP | F14: 0 | G14: 104934927
A15: Retención Impuesto a la Renta | B15: 531234943 | C15: 370761617
A16: Retención Impuesto al Valor agregado | B16: 108005206 | C16: 207521754 | E16: Total | F16: 47298184 | G16: 144916747
A17: Otros Creditos | B17: 3498960396 | C17: 970820441
A18: Total | B18: 13608345075 | C18: 4393253757

Sheet Nota 7
A1: =Indice!C1 -> BIOTEC DEL PARAGUAY S.A. | D1: BG
A4: NOTA 7 – INVENTARIOS
A6: Los bienes de cambio están compuestos de la siguiente manera:
B7: En miles de guaranies
A8: Concepto | B8: 2021 | C8: 2020
A9: Mercaderías | B9: 33226711052 | C9: 21120660445
A10: Productos terminados | B10: 0 | C10: 0
A11: Productos en proceso | B11: 0 | C11: 0
A12: Mercaderías en Curso | B12: 0 | C12: 0
A13: Importacion en Curso | B13: 8386185653 | C13: 2929455834
A14: (-) Previsión para desvalorización y deterioro de inventario | B14: 0 | C14: 0
A15: Total | B15: 36564474317 | C15: 18652842088

Sheet Nota 8
A1: =Indice!C1 -> BIOTEC DEL PARAGUAY S.A. | D1: BG
A4: Nota 8 - INVERSIONES EN ASOCIADAS
A5: En miles de guaraníes
A6: Las inversiones en sociedades donde no se ejerce control se describen a continuación
A7: Periodo | B7: 2021 | C7: 2020
A8: Total Inversión | B8: =SUM($I$13:I18) -> 0 | C8: 0 | D8: <-- Indicar Monto
A10: a) Datos sobre la sociedad: | G10: a) Datos sobre la inversión:
D11: =IFERROR(IF(Indice!B6="","2XX2",YEAR(Indice!B6)),"2XX2") -> 2021
A12: Nombre de Sociedad | B12: RUC | C12: Cantidad de acciones | D12: Total Patrimonio neto | E12: Total del resultado | G12: Cantidad de acciones | H12: Participación sobre los votos (%) | I12: Total Inversión (miles de Gs) | J12: Participación sobre el Patrimonio Neto (%) | K12: Total valuación patrimonial proporcional | L12: Resultado sobre inversiones
A13: NO APLICABLE | G13: NO APLICABLE
K18: =J18*D18 -> 0 | L18: =J18*E18 -> 0

Sheet Nota 9
A1: =Indice!C1 -> BIOTEC DEL PARAGUAY S.A. | L1: BG
A4: NOTA 9 - PROPIEDADES, PLANTA Y EQUIPO - NETO
A5: En miles de guaraníes | J5: -1
B7: Costo histórico revaluado al inicio del año | C7: Adquisiciones | D7: Bajas | E7: Revalúo del año | F7: Valor de origen revaluado al final del año | G7: Depreciación acumulada revaluada al inicio del año | H7: Depreciación del año | I7: Bajas de depreciaciones acumuladas | J7: Revalúo depreciación acumulada del año | K7: Depreciación acumulada revaluada al final del año | L7: Valor neto contable
L8: =IFERROR(IF(Indice!B6="","2XX2",YEAR(Indice!B6)),"2XX2") -> 2021 | M8: 2020
A9: Inmuebles | B9: 3247062374 | C9: 0 | D9: 0 | E9: 0 | F9: 3247062374 | G9: 0 | H9: 0 | I9: 0 | J9: 0 | K9: 0 | L9: 3247062374 | M9: 1822036373
A10: Rodados | B10: 1431601335 | C10: 0 | D10: 0 | E10: 0 | F10: 1431601335 | G10: 1302863999 | H10: 197744316 | I10: 0 | J10: 0 | K10: 1500608315 | L10: 1233857019 | M10: 1478791687
A11: Muebles y útiles | B11: 255164916 | C11: 17969999 | D11: 240000 | E11: 0 | F11: 272894915 | G11: 378784209 | H11: 22250694 | I11: 0 | J11: 0 | K11: 401034903 | L11: 250644221 | M11: 245880313
A12: Equipos de Laboratorio | B12: 1.422515678e+10 | C12: 145357116 | D12: 0 | E12: 0 | F12: 1.43705139e+10 | G12: 15773704781 | H12: 1334066922 | I12: 0 | J12: 0 | K12: 17107771703 | L12: 1.303644697e+10 | M12: 13009703905
A13: Equipos de comunicación | B13: 12225866 | C13: 0 | D13: 0 | E13: 0 | F13: 12225866 | G13: 13446878 | H13: 2265060 | I13: 0 | J13: 0 | K13: 15711938 | L13: 9960806 | M13: 13641280
A14: Equipo de Informatica | B14: 374111318.5 | C14: 121277414 | D14: 3709091 | E14: 0 | F14: 491679641.5 | G14: 1727469307 | H14: 138545478 | I14: 0 | J14: 0 | K14: 1866014785 | L14: 353134163.5 | M14: 425502863
A15: Mejora Predio Ajeno | B15: 182249956.8 | C15: 2888182 | D15: 0 | E15: 0 | F15: 185138138.8 | G15: 388315801 | H15: 16696008 | I15: 0 | J15: 0 | K15: 405011809 | L15: 168442130.8 | M15: 197524607
A16: Software | B16: 28770552.32 | C16: 0 | D16: 0 | E16: 0 | F16: 28770552.32 | G16: 499780132 | H16: 11171910 | I16: 0 | J16: 0 | K16: 510952042 | L16: 17598642.32 | M16: 39611158
A17: Edificios | B17: 466432478.3 | C17: 1545455 | D17: 0 | E17: 0 | F17: 467977933.3 | G17: 115946029 | H17: 0 | I17: 0 | J17: 0 | K17: 115946029 | L17: 467977933.3 | M17: 449848817
A18: Instalaciones | B18: 40902047.83 | C18: 2758182 | D18: 0 | E18: 0 | F18: 43660229.83 | G18: 370125291 | H18: 23349186 | I18: 0 | J18: 0 | K18: 393474477 | L18: 20311043.83 | M18: 49648726
A19: Obras en Curso | B19: 418253000 | C19: 2489562738 | D19: 0 | E19: 0 | F19: 2907815738 | G19: 0 | H19: 0 | I19: 0 | J19: 0 | K19: 0 | L19: 2907815738 | M19: 418253000
A20: Totales | B20: 2.068193062e+10 | C20: 2781359086 | D20: 3949091 | E20: 0 | F20: 2.345934062e+10 | G20: 20570436427 | H20: 1746089574 | I20: 0 | J20: 0 | K20: 22316526001 | L20: 2.171325105e+10 | M20: 18150442729

Sheet Nota 10
A1: =Indice!C1 -> BIOTEC DEL PARAGUAY S.A. | C1: BG
A4: NOTA 10 – ACTIVOS DISPONIBLES PARA LA VENTA
B5: En miles de guaranies
B6: 2021 | C6: 2020
A7: Propiedad, planta y equipo
A8: (Detallar bienes de uso) | B8: N/A | C8: N/A
A9: Total | B9: =B8 -> N/A | C9: =C8 -> N/A
A11: Activos intangibles
A12: (Detallar activos intangibles) | B12: N/A | C12: N/A
A13: Total | B13: =B12 -> N/A | C13: =C12 -> N/A
A15: Inversiones
A16: (Detallar Inversiones | B16: N/A | C16: N/A
A17: Total | B17: =B16 -> N/A | C17: =C16 -> N/A
A19: Total general | B19: 0 | C19: 0

Sheet Nota 11
A1: =Indice!C1 -> BIOTEC DEL PARAGUAY S.A. | F1: BG
A4: NOTA 11 – ACTIVOS INTANGIBLES
B5: En miles de guaranies
A6: Activos intangibles | B6: 2021 | C6: 2020
A7: Licencias Marcas y Patente | B7: 502080044 | C7: 464776044
A8: Menos amortización acumulada | B8: -417141944 | C8: -347377040
A10: Total general | B10: 84938100 | C10: 117399004

Sheet Nota 12
A1: =Indice!C1 -> BIOTEC DEL PARAGUAY S.A. | E1: BG
A5: NOTA 12 – GOODWILL
B6: En miles de guaranies
A7: Goodwill | B7: 2021 | C7: 2020
B8: N/A | C8: N/A
A9: Total general | B9: 0 | C9: 0

Sheet Nota 13
A1: =Indice!C1 -> BIOTEC DEL PARAGUAY S.A. | C1: BG
A4: NOTA 13 – CUENTAS POR PAGAR COMERCIALES
A5: En miles de guaranies
A6: Las cuentas por pagar comerciales se componen como sigue:
A8: Corrientes | B8: Simbología según ISO 4217 | C8: Indicación de Moneda | D8: 2021 | E8: 2020
A9: Proveedores - Entidades Relacionadas
A10: Otros proveedores del exterior | D10: 12445546197 | E10: 8218169760
A11: Proveedores locales | D11: 1224407668 | E11: 1320028018
A12: Acreesores Varios Milciades Ramos | D12: 4768350 | E12: 6592500
A13: Tarjeta de Credito Familiar | D13: 483664 | E13: 10137147
A14: Total cuentas a pagar por comerciales | D14: 13675205879 | E14: 9554927425
A18: No Corrientes | B18: Simbología según ISO 4217 | C18: Indicación de Moneda | D18: 2021 | E18: 2020
A19: Proveedores - Entidades Relacionadas | D19: 0 | E19: 0
A20: Otros proveedores del exterior | D20: 0 | E20: 0
A21: Proveedores locales | D21: 0 | E21: 0
A22: (nuevas cuentas a incluir) | D22: 0 | E22: 0
A23: Total cuentas a pagar por comerciales | D23: 0 | E23: 0
A26: Indicación de monedas

Sheet Nota 14
A1: =Indice!C1 -> BIOTEC DEL PARAGUAY S.A. | E1: BG | L1: BG
A4: NOTA 14 – PRESTAMOS A CORTO Y LARGO PLAZO
A6: (a) Equivalentes al tipo de cambio referencial de la fecha de presentacion
A7: (b) Obligaciones garantizadas por valor de guaraníes………..
A9: Corrientes
D10: =IFERROR(IF(Indice!B6="","2XX2",YEAR(Indice!B6)),"2XX2") -> 2021 | J10: 2020
A11: Préstamos de Entidades Locales | B11: Vencimiento | C11: Símbolo de Moneda | D11: Moneda | E11: Importe (miles de Gs) | F11: Tipo de Garantía | H11: Vencimiento | I11: Símbolo de Moneda | J11: Moneda | K11: Importe (miles de Gs) | L11: Tipo de Garantía
A12: PRESTAMOS SUDAMERIS BANK | C12: PYG | D12: =IFERROR(VLOOKUP(C12,'[1]Base de Monedas'!A:B,2,0),"") -> Guaraní | E12: 0 | H12: 2021-02-18 | I12: PYG | J12: =IFERROR(VLOOKUP(I12,'[1]Base de Monedas'!A:B,2,0),"") -> Guaraní | K12: 1000000000 | L12: Codeudora
A13: PRESTAMO BANCO BASA S.A. | B13: 2021-09-07 | C13: PYG | D13: =IFERROR(VLOOKUP(C13,'[1]Base de Monedas'!A:B,2,0),"") -> Guaraní | E13: =1500000000+2342000000 -> 3842000000 | F13: Solidaria | H13: 2020-10-01 | I13: PYG | J13: =IFERROR(VLOOKUP(I13,'[1]Base de Monedas'!A:B,2,0),"") -> Guaraní | K13: =2000000000+500000000+500000000 -> 3000000000 | L13: Solidaria
A14: PRESTAMO FINANCIERA RIO S.A.E.C.A | B14: 2022-04-26 | C14: PYG | D14: =IFERROR(VLOOKUP(C14,'[1]Base de Monedas'!A:B,2,0),"") -> Guaraní | E14: 1000000000 | F14: Solidaria | I14: PYG | J14: =IFERROR(VLOOKUP(I14,'[1]Base de Monedas'!A:B,2,0),"") -> Guaraní
A15: PRESTAMO BANCOP S.A. | B15: 2022-03-20 | C15: PYG | D15: =IFERROR(VLOOKUP(C15,'[1]Base de Monedas'!A:B,2,0),"") -> Guaraní | E15: 2000000000 | F15: Codeudora | H15: 2021-03-23 | I15: PYG | J15: =IFERROR(VLOOKUP(I15,'[1]Base de Monedas'!A:B,2,0),"") -> Guaraní | K15: =500000000+1000000000 -> 1500000000 | L15: Codeudora
A16: PRESTAMO BCO. ATLAS S.A. | B16: 2021-07-15 | C16: PYG | D16: =IFERROR(VLOOKUP(C16,'[1]Base de Monedas'!A:B,2,0),"") -> Guaraní | E16: 2001000000 | F16: Codeudora | I16: PYG | J16: =IFERROR(VLOOKUP(I16,'[1]Base de Monedas'!A:B,2,0),"") -> Guaraní
A17: PRESTAMO BANCO FAMILIAR GS. | B17: 2022-03-13 | C17: PYG | D17: =IFERROR(VLOOKUP(C17,'[1]Base de Monedas'!A:B,2,0),"") -> Guaraní | E17: 2010410068 | F17: Solidaria | H17: 2021-03-05 | I17: PYG | J17: =IFERROR(VLOOKUP(I17,'[1]Base de Monedas'!A:B,2,0),"") -> Guaraní | K17: 2000000000 | L17: Solidaria
A18: PRESTAMO FIC S.A. DE FINANZAS | B18: 2021-09-16 | C18: PYG | D18: =IFERROR(VLOOKUP(C18,'[1]Base de Monedas'!A:B,2,0),"") -> Guaraní | E18: =146033721+42128307 -> 188162028 | F18: Codeudora | H18: 2021-01-04 | I18: PYG | J18: =IFERROR(VLOOKUP(I18,'[1]Base de Monedas'!A:B,2,0),"") -> Guaraní | K18: =605137256+2218178776 -> 2823316032 | L18: Codeudora
A19: PRESTAMO FINANCIERA PYO-JAPONESA S.A. | B19: 2022-04-05 | C19: PYG | D19: =IFERROR(VLOOKUP(C19,'[1]Base de Monedas'!A:B,2,0),"") -> Guaraní | E19: =550000000+1500000000 -> 2050000000 | F19: Codeudora | H19: 2021-03-23 | I19: PYG | J19: =IFERROR(VLOOKUP(I19,'[1]Base de Monedas'!A:B,2,0),"") -> Guaraní | K19: 1801100000 | L19: Codeudora
A20: PRESTAMO BCO. CONTINENTAL GS. | B20: 2021-08-23 | C20: PYG | D20: =IFERROR(VLOOKUP(C20,'[1]Base de Monedas'!A:B,2,0),"") -> Guaraní | E20: 750000000 | F20: Codeudora
A21: PRESTAMO BCO. BBVA | B21: 2021-06-22 | C21: PYG | D21: =IFERROR(VLOOKUP(C21,'[1]Base de Monedas'!A:B,2,0),"") -> Guaraní | E21: 0 | F21: Solidaria | H21: 2020-09-21 | I21: PYG | J21: =IFERROR(VLOOKUP(I21,'[1]Base de Monedas'!A:B,2,0),"") -> Guaraní | K21: 3000000000 | L21: Solidaria
A22: PRESTAMO BCO. VISION S.A.E.C.A. GS. | B22: 2022-06-09 | C22: PYG | D22: =IFERROR(VLOOKUP(C22,'[1]Base de Monedas'!A:B,2,0),"") -> Guaraní | E22: 1515228362 | F22: Solidaria | H22: 2021-01-01 | I22: PYG | J22: =IFERROR(VLOOKUP(I22,'[1]Base de Monedas'!A:B,2,0),"") -> Guaraní | K22: 1466814711 | L22: Codeudora
A23: PRESTAMOS CAJA MUTUAL DE COOP. DEL PY | B23: 2021-07-09 | C23: PYG | D23: =IFERROR(VLOOKUP(C23,'[1]Base de Monedas'!A:B,2,0),"") -> Guaraní | E23: 500000000 | F23: Codeudora
A24: PRESTAMO DE TERCEROS | B24: 2021-04-24 | C24: PYG | D24: =IFERROR(VLOOKUP(C24,'[1]Base de Monedas'!A:B,2,0),"") -> Guaraní | E24: =+'[1]2020-2021'!D138 -> 500000000 | F24: Solidaria
A25: PRESTAMO BANCO INTERFISA | B25: 2022-04-12 | C25: PYG | D25: =IFERROR(VLOOKUP(C25,'[1]Base de Monedas'!A:B,2,0),"") -> Guaraní | E25: 1000000000 | F25: Solidaria | J25: =IFERROR(VLOOKUP(I25,'[1]Base de Monedas'!A:B,2,0),"") ->  | K25: 1000000000 | L25: Solidaria
A26: PRESTAMO BANCO ITAÚ | B26: 2022-04-01 | C26: PYG | D26: =IFERROR(VLOOKUP(C26,'[1]Base de Monedas'!A:B,2,0),"") -> Guaraní | E26: =907172110+1034849776+1030909683+1800000000 -> 4772931569 | F26: Codeudora | H26: 2020-06-12 | I26: PYG | J26: =IFERROR(VLOOKUP(I26,'[1]Base de Monedas'!A:B,2,0),"") -> Guaraní | K26: 2600000000 | L26: Codeudora
A27: PRESTAMO GNB PARAGUAY SA GS | C27: PYG | D27: =IFERROR(VLOOKUP(C27,'[1]Base de Monedas'!A:B,2,0),"") -> Guaraní | H27: 2020-08-01 | I27: PYG | J27: =IFERROR(VLOOKUP(I27,'[1]Base de Monedas'!A:B,2,0),"") -> Guaraní | K27: 900000000 | L27: Codeudora
A28: PRESTAMO FINANCIERA EL COMERCIO | B28: 2021-06-17 | C28: PYG | D28: =IFERROR(VLOOKUP(C28,'[1]Base de Monedas'!A:B,2,0),"") -> Guaraní | E28: 0 | F28: Codeudora | I28: PYG | J28: =IFERROR(VLOOKUP(I28,'[1]Base de Monedas'!A:B,2,0),"") -> Guaraní | K28: 1010360784 | L28: Solidaria
A29: (incluir otras entidades)
A30: Deudas bursátiles | D30: =IFERROR(VLOOKUP(C30,'[1]Base de Monedas'!A:B,2,0),"") ->  | J30: =IFERROR(VLOOKUP(I30,'[1]Base de Monedas'!A:B,2,0),"") -> 
A31: (Incluir programas de forma individual) | D31: =IFERROR(VLOOKUP(C31,'[1]Base de Monedas'!A:B,2,0),"") ->  | J31: =IFERROR(VLOOKUP(I31,'[1]Base de Monedas'!A:B,2,0),"") -> 
A32: Préstamos de Entidades en el Exterior | D32: =IFERROR(VLOOKUP(C32,'[1]Base de Monedas'!A:B,2,0),"") ->  | J32: =IFERROR(VLOOKUP(I32,'[1]Base de Monedas'!A:B,2,0),"") -> 
A33: Nombre de la entidad financiera | D33: =IFERROR(VLOOKUP(C33,'[1]Base de Monedas'!A:B,2,0),"") ->  | J33: =IFERROR(VLOOKUP(I33,'[1]Base de Monedas'!A:B,2,0),"") -> 
A34: Nombre de la entidad financiera | D34: =IFERROR(VLOOKUP(C34,'[1]Base de Monedas'!A:B,2,0),"") ->  | J34: =IFERROR(VLOOKUP(I34,'[1]Base de Monedas'!A:B,2,0),"") -> 
A35: (incluir otras entidades) | D35: =IFERROR(VLOOKUP(C35,'[1]Base de Monedas'!A:B,2,0),"") ->  | J35: =IFERROR(VLOOKUP(I35,'[1]Base de Monedas'!A:B,2,0),"") -> 
A36: Deudas bursátiles | D36: =IFERROR(VLOOKUP(C36,'[1]Base de Monedas'!A:B,2,0),"") ->  | J36: =IFERROR(VLOOKUP(I36,'[1]Base de Monedas'!A:B,2,0),"") -> 
A37: (Incluir programas de forma individual) | D37: =IFERROR(VLOOKUP(C37,'[1]Base de Monedas'!A:B,2,0),"") ->  | J37: =IFERROR(VLOOKUP(I37,'[1]Base de Monedas'!A:B,2,0),"") -> 
A38: Intereses préstamos entidades financieras a pagar | D38: =IFERROR(VLOOKUP(C38,'[1]Base de Monedas'!A:B,2,0),"") ->  | J38: =IFERROR(VLOOKUP(I38,'[1]Base de Monedas'!A:B,2,0),"") -> 
A39: Intereses a pagar | C39: PYG | D39: Guaraní | E39: 1032678987 | F39: Codeudora | I39: PYG | J39: =IFERROR(VLOOKUP(I39,'[1]Base de Monedas'!A:B,2,0),"") -> Guaraní | K39: 1172639616 | L39: Codeudora
A40: (-) Intereses a Devengar | C40: PYG | D40: =IFERROR(VLOOKUP(C40,'[1]Base de Monedas'!A:B,2,0),"") -> Guaraní | E40: =+'[1]2020-2021'!D143 -> -1030107287 | F40: Codeudora | I40: PYG | J40: =IFERROR(VLOOKUP(I40,'[1]Base de Monedas'!A:B,2,0),"") -> Guaraní | K40: =-1245729786+13333370 -> -1232396416 | L40: Codeudora
A41: Intereses deudas bursátiles a pagar | D41: =IFERROR(VLOOKUP(C41,'[1]Base de Monedas'!A:B,2,0),"") -> 
A42: Intereses a pagar | D42: =IFERROR(VLOOKUP(C42,'[1]Base de Monedas'!A:B,2,0),"") ->  | E42: 3914495896
A43: (-) Intereses a Devengar | D43: =IFERROR(VLOOKUP(C43,'[1]Base de Monedas'!A:B,2,0),"") ->  | E43: -3925250004
A44: Total | D44: =IFERROR(VLOOKUP(C44,'[1]Base de Monedas'!A:B,2,0),"") ->  | E44: =SUM($E$12:E43) -> 2.212154962e+10 | K44: =SUM(K12:K43) -> 22041834727
A47: No Corrientes
D48: 2021 | J48: 2020
A49: Préstamos de Entidades Locales | B49: Vencimiento | C49: Símbolo de Moneda | D49: Moneda | E49: Importe (miles de Gs) | F49: Tipo de garantía | H49: Vencimiento | I49: Símbolo de Moneda | J49: Moneda | K49: Importe (miles de Gs) | L49: Tipo de Garantía
A50: PRESTAMO BCO. CONTINENTAL GS. | C50: PYG | D50: Guaraní | F50: Codeudora
A51: Nombre de la entidad financiera | D51: =IFERROR(VLOOKUP(C51,'[1]Base de Monedas'!A:B,2,0),"") ->  | J51: =IFERROR(VLOOKUP(I51,'[1]Base de Monedas'!A:B,2,0),"") -> 
A52: (incluir otras entidades) | D52: =IFERROR(VLOOKUP(C52,'[1]Base de Monedas'!A:B,2,0),"") ->  | J52: =IFERROR(VLOOKUP(I52,'[1]Base de Monedas'!A:B,2,0),"") -> 
A53: Deudas bursátiles | D53: =IFERROR(VLOOKUP(C53,'[1]Base de Monedas'!A:B,2,0),"") -> 
A54: SERIE 1 (uno) | B54: 26/09/2022 | C54: PYG | D54: =IFERROR(VLOOKUP(C54,'[1]Base de Monedas'!A:B,2,0),"") -> Guaraní | E54: 3000000000 | H54: 26/09/2022 | I54: PYG | J54: Guaraní | K54: 3000000000
A55: SERIE 2 (dos) | B55: 2023-03-22 | C55: PYG | D55: =IFERROR(VLOOKUP(C55,'[1]Base de Monedas'!A:B,2,0),"") -> Guaraní | E55: 3000000000 | H55: 2023-03-22 | I55: PYG | J55: Guaraní | K55: 3000000000
A56: SERIE 3 (tres) | B56: 2023-06-21 | C56: PYG | D56: =IFERROR(VLOOKUP(C56,'[1]Base de Monedas'!A:B,2,0),"") -> Guaraní | E56: 3000000000 | H56: 2023-06-21 | I56: PYG | J56: Guaraní | K56: 3000000000
A57: SERIE 4 (cuatro) | B57: 2023-09-20 | C57: PYG | D57: =IFERROR(VLOOKUP(C57,'[1]Base de Monedas'!A:B,2,0),"") -> Guaraní | E57: 3000000000 | H57: 2023-09-20 | I57: PYG | J57: Guaraní | K57: 3000000000
A58: SERIE 5 (cinco) | B58: 2024-03-20 | C58: PYG | D58: =IFERROR(VLOOKUP(C58,'[1]Base de Monedas'!A:B,2,0),"") -> Guaraní | E58: 3000000000 | H58: 2024-03-20 | I58: PYG | J58: Guaraní | K58: 3000000000
A59: SERIE 6 (seis) | B59: 2023-04-03 | C59: PYG | D59: =IFERROR(VLOOKUP(C59,'[1]Base de Monedas'!A:B,2,0),"") -> Guaraní | E59: 1000000000 | H59: 2023-04-03 | I59: PYG | J59: =IFERROR(VLOOKUP(I59,'[1]Base de Monedas'!G:H,2,0),"") ->  | K59: 1000000000
A60: SERIE 7 (siete) | B60: 2023-10-02 | C60: PYG | D60: =IFERROR(VLOOKUP(C60,'[1]Base de Monedas'!A:B,2,0),"") -> Guaraní | E60: 1000000000 | H60: 2023-10-02 | I60: PYG | J60: =IFERROR(VLOOKUP(I60,'[1]Base de Monedas'!G:H,2,0),"") ->  | K60: 1000000000
A61: SERIE 8 (ocho) | B61: 2024-04-02 | C61: PYG | D61: =IFERROR(VLOOKUP(C61,'[1]Base de Monedas'!A:B,2,0),"") -> Guaraní | E61: 1500000000 | H61: 2024-04-02 | I61: PYG | J61: =IFERROR(VLOOKUP(I61,'[1]Base de Monedas'!G:H,2,0),"") ->  | K61: 1500000000
A62: SERIE 9 (nueve) | B62: 2024-10-01 | C62: PYG | D62: =IFERROR(VLOOKUP(C62,'[1]Base de Monedas'!A:B,2,0),"") -> Guaraní | E62: 1500000000 | H62: 2024-10-01 | I62: PYG | J62: =IFERROR(VLOOKUP(I62,'[1]Base de Monedas'!G:H,2,0),"") ->  | K62: 1500000000
A63: SERIE 10 (diez) | B63: 2025-03-31 | C63: PYG | D63: =IFERROR(VLOOKUP(C63,'[1]Base de Monedas'!A:B,2,0),"") -> Guaraní | E63: 3000000000 | H63: 2025-03-31 | I63: PYG | J63: =IFERROR(VLOOKUP(I63,'[1]Base de Monedas'!G:H,2,0),"") ->  | K63: 3000000000
A64: SERIE 11 (once) | B64: 2024-07-25 | C64: PYG | D64: =IFERROR(VLOOKUP(C64,'[1]Base de Monedas'!A:B,2,0),"") -> Guaraní | E64: 4000000000 | H64: 2024-07-25 | I64: PYG | J64: =IFERROR(VLOOKUP(I64,'[1]Base de Monedas'!G:H,2,0),"") ->  | K64: 4000000000
A65: SERIE 12 (doce) | B65: 2025-05-22 | C65: PYG | D65: =IFERROR(VLOOKUP(C65,'[1]Base de Monedas'!A:B,2,0),"") -> Guaraní | E65: 3000000000 | H65: 2025-05-22 | I65: PYG | J65: =IFERROR(VLOOKUP(I65,'[1]Base de Monedas'!G:H,2,0),"") ->  | K65: 3000000000
A66: Préstamos de Entidades en el Exterior | D66: =IFERROR(VLOOKUP(C66,'[1]Base de Monedas'!A:B,2,0),"") ->  | J66: =IFERROR(VLOOKUP(I66,'[1]Base de Monedas'!A:B,2,0),"") -> 
A67: Nombre de la entidad financiera | D67: =IFERROR(VLOOKUP(C67,'[1]Base de Monedas'!A:B,2,0),"") ->  | J67: =IFERROR(VLOOKUP(I67,'[1]Base de Monedas'!A:B,2,0),"") -> 
A68: Nombre de la entidad financiera | D68: =IFERROR(VLOOKUP(C68,'[1]Base de Monedas'!A:B,2,0),"") ->  | J68: =IFERROR(VLOOKUP(I68,'[1]Base de Monedas'!A:B,2,0),"") -> 
A69: (incluir otras entidades) | D69: =IFERROR(VLOOKUP(C69,'[1]Base de Monedas'!A:B,2,0),"") ->  | J69: =IFERROR(VLOOKUP(I69,'[1]Base de Monedas'!A:B,2,0),"") -> 
A70: Deudas bursátiles | D70: =IFERROR(VLOOKUP(C70,'[1]Base de Monedas'!A:B,2,0),"") ->  | J70: =IFERROR(VLOOKUP(I70,'[1]Base de Monedas'!A:B,2,0),"") -> 
A71: (Incluir programas de forma individual) | D71: =IFERROR(VLOOKUP(C71,'[1]Base de Monedas'!A:B,2,0),"") ->  | J71: =IFERROR(VLOOKUP(I71,'[1]Base de Monedas'!A:B,2,0),"") -> 
A72: Intereses préstamos entidades financieras a pagar | D72: =IFERROR(VLOOKUP(C72,'[1]Base de Monedas'!A:B,2,0),"") ->  | J72: =IFERROR(VLOOKUP(I72,'[1]Base de Monedas'!A:B,2,0),"") -> 
A73: Intereses a pagar | C73: PYG | D73: =IFERROR(VLOOKUP(C73,'[1]Base de Monedas'!A:B,2,0),"") -> Guaraní | E73: 0 | F73: Codeudora | J73: =IFERROR(VLOOKUP(I73,'[1]Base de Monedas'!A:B,2,0),"") -> 
A74: (-) Intereses a Devengar | C74: PYG | D74: =IFERROR(VLOOKUP(C74,'[1]Base de Monedas'!A:B,2,0),"") -> Guaraní | E74: 0 | F74: Codeudora
A75: Intereses deudas bursátiles a pagar | D75: =IFERROR(VLOOKUP(C75,'[1]Base de Monedas'!A:B,2,0),"") ->  | J75: =IFERROR(VLOOKUP(I75,'[1]Base de Monedas'!A:B,2,0),"") -> 
A76: Intereses DE BONOS a pagar | C76: PYG | D76: =IFERROR(VLOOKUP(C76,'[1]Base de Monedas'!A:B,2,0),"") -> Guaraní | E76: 6397359595 | I76: PYG | J76: Guarani | K76: 14477806866
A77: (-) Intereses a Devengar | C77: PYG | D77: =IFERROR(VLOOKUP(C77,'[1]Base de Monedas'!A:B,2,0),"") -> Guaraní | E77: -6265268500 | I77: PYG | J77: Guarani | K77: -14115768508
A78: Total | D78: =IFERROR(VLOOKUP(C78,'[1]Base de Monedas'!A:B,2,0),"") ->  | E78: =SUM($E$50:E77) -> 3.013209109e+10 | J78: =IFERROR(VLOOKUP(I78,'[1]Base de Monedas'!A:B,2,0),"") ->  | K78: =SUM(K50:K77) -> 30362038358

Sheet Nota 15
A1: =Indice!C1 -> BIOTEC DEL PARAGUAY S.A. | D1: BG
A5: NOTA 15 – PORCION CORRIENTE DE LA DEUDA A LARGO PLAZO
B7: En miles de guaranies
A8: Porción corriente de la deuda a largo plazo | B8: 2021 | C8: 2020
A9: Cuentas por pagar comerciales | B9: 0 | C9: 0
A10: Préstamos bancarios | B10: 0 | C10: 0
A11: Bonos bursátiles | B11: 0 | C11: 0
A12: Intereses bancarios a pagar | B12: 0 | C12: 0
A13: Bonos Emitidos a Pagar LP | B13: 0 | C13: 0
B14: 0 | C14: 0
A15: Total general | B15: 0 | C15: 0

Sheet Nota 16
A1: =Indice!C1 -> BIOTEC DEL PARAGUAY S.A. | F1: BG
A4: NOTA 16 – REMUNERACIONES Y CARGAS SOCIALES A PAGAR
B6: En miles de guaranies
A7: Remuneraciones y cargas sociales a pagar | B7: 2021 | C7: 2020
A8: Sueldo y otras remuneraciones a pagar | B8: 0 | C8: 0
A9: Aportes y retenciones a pagar | B9: 166556866 | C9: 45089432
A10: Remuneraciones al personal superior a pagar | B10: 0 | C10: 0
A11: (Indicar otras cuentas)
A12: Total | B12: 166556866 | C12: 45089432

Sheet Nota 17
A1: =Indice!C1 -> BIOTEC DEL PARAGUAY S.A. | G1: BG
A5: NOTA 17 – IMPUESTOS A PAGAR
B7: En miles de guaranies
A8: Impuestos a pagar | B8: 2021 | C8: 2020
A9: Impuesto a la renta a pagar | B9: 0 | C9: 223191228
A10: Otros impuestos a pagar | B10: 0 | C10: 22500000
A11: Retención de Renta / Iva p/ Flete | B11: 0 | C11: 758813
A12: Retención de Impuesto a Igresar | B12: 31091641 | C12: 21758093
A13: Total | B13: 31091641 | C13: 268208134

Sheet Nota 18
A1: =Indice!C1 -> BIOTEC DEL PARAGUAY S.A. | D1: BG
A4: NOTA 18 - PROVISIONES
B6: En miles de guaranies
A7: Provisiones | B7: 2021 | C7: 2020
A9: Alquileres a Pagar | B9: 0 | C9: 0
A10: Dividendos a Pagar | B10: 9687129447 | C10: 16896978364
A11: Honorarios Profesionales a Pagar | B11: 0 | C11: 0
A12: Otras Cuentas a Pagar | B12: 359000 | C12: 0
A13: Total | B13: 9687488447 | C13: 16896978364

Sheet Nota 19
A1: =Indice!C1 -> BIOTEC DEL PARAGUAY S.A. | D1: BG
A3: NOTA 19 – OTROS PASIVOS CORRIENTES y NO CORRIENTES
A4: En miles de guaranies
A6: Corrientes | B6: 2021 | C6: 2020 | E6: No Corrientes | F6: 2021 | G6: 2020
A7: Retencion de IVA a pagar | B7: 0 | C7: 0 | E7: Retencion de IVA a pagar | F7: 0 | G7: 0
A8: Retencion Impuesto a la renta a Pagar | B8: 0 | C8: 0 | E8: Retencion Impuesto a la renta a Pagar | F8: 0 | G8: 0
A9: Impuestos diferidos | B9: 0 | C9: 0 | E9: Impuestos diferidos | F9: 0 | G9: 0
A10: Otros ingresos diferidos (detallar cuenta) | B10: 0 | C10: 0 | E10: Otros ingresos diferidos | F10: 0 | G10: 0
A11: Otros Pasivos con Entidades relacionadas | B11: 0 | C11: 0 | E11: Otros Pasivos con Entidades relacionadas | F11: 0 | G11: 0
A12: Previsiones para contingencias/Indemnizaciones y despidos | B12: 0 | C12: 0 | E12: Previsiones para contingencias/Indemnizaciones y despidos | F12: 0 | G12: 0
A13: Prestamos de Socios GS | B13: 1400000000 | C13: 0 | E13: Prestamos de Socios GS | F13: 0 | G13: 0
A14: Prestamos de Socios M/E | B14: 664237597 | C14: 629407158 | E14: Prestamos de Socios M/E | F14: 0 | G14: 0
A15: Anticipos de Cliente | B15: 20686487 | C15: 45515090 | E15: Anticipos de Cliente | F15: 0 | G15: 0
A16: Sueldos y Jornales a Pagar | B16: 0 | C16: 0
A17: Aguinaldo a Pagar | B17: 302636800 | C17: 196468237
A18: Intereses s/ Bonos a Pagar | B18: 0 | C18: 0 | E18: Intereses s/ Bonos a Pagar | F18: 0 | G18: 0
A19: Acreedores Varios | B19: 396430155 | C19: 0 | E19: (nuevas cuentas a incluir)
A20: Total | B20: 2783991039 | C20: 871390485 | E20: Total | F20: 0 | G20: 0

Sheet Nota 20
A1: =Indice!C1 -> BIOTEC DEL PARAGUAY S.A. | D1: BG
A4: NOTA 20 – CAPITAL INTEGRADO
A6: Fecha | B6: 2021 | C6: 2020
A7: Monto Capital Social | B7: 0 | C7: 0
A8: Monto Capital Integrado | B8: 15000000000 | C8: 12000000000
A9: Cantidad de Acciones | B9: 15000 | C9: 12000
A10: Valor Nominal de Acciones | B10: 1000000 | C10: 1000000
A11: Total | B11: 15000000000 | C11: 12000000000

Sheet Nota 21
A1: =Indice!C1 -> BIOTEC DEL PARAGUAY S.A. | F1: BG
A4: NOTA 21 – RESERVAS
B6: En miles de guaranies
B7: 2021 | C7: 2020
A8: a Reserva de revalúo | B8: =+B9+B10 -> 2195468553 | C8: =+'[1]2020-2021'!E165 -> 770442553
A9: a.1. Reserva de revalúo | B9: =+'[1]2020-2021'!D165 -> 770442553 | C9: =+'[1]2020-2021'!E165 -> 770442553
A10: a.2. Reserva de revalúo técnico | B10: =+'[1]2020-2021'!D166 -> 1425026000 | C10: 0
A19: b Reserva legal | B19: 2336722151 | C19: 1618994215
A24: c Reservas estatutarias | B24: =+SUM($B28:B$29) -> 0 | C24: =+SUM($B28:C$29) -> 0
A28: d Reservas facultativas | B28: 0 | C28: 0
A29: d.1. (nuevas cuentas a incluir)

Sheet Nota 22
A1: =Indice!C1 -> BIOTEC DEL PARAGUAY S.A. | F1: BG
A4: NOTA 21 – DIFERENCIA TRANSITORIA POR CONVERSION
B6: En miles de guaranies
B7: 2021 | C7: 2020
A8: Diferencia transitoria por conversión | B8: N/A | C8: N/A
A9: Total | B9: 0 | C9: 0

Sheet Nota 23
A1: =Indice!C1 -> BIOTEC DEL PARAGUAY S.A. | F1: BG
A4: NOTA 23 – RESULTADOS ACUMULADOS
B6: En miles de guaranies
B7: 2021 | C7: 2020
A8: Resultado de ejercicios anteriores | B8: 8236971613 | C8: 0
A9: Resultado del ejercicio actual | B9: 10636830780 | C9: -1786188882
A10: Totales | B10: 18873802393 | C10: -1786188882

Sheet Nota 24
A1: =Indice!C1 -> BIOTEC DEL PARAGUAY S.A. | F1: BG
A4: NOTA 24 – INTERES MINORITARIO
B6: En miles de guaranies
B7: 2021 | C7: 2020
A8: Interes Minoritario | B8: N/A | C8: N/A
A9: Total | B9: 0 | C9: 0

Sheet Nota 25
A1: =Indice!C1 -> BIOTEC DEL PARAGUAY S.A. | E1: ER
A5: NOTA 25 – VENTAS
B8: En miles de guaranies
B9: 2021 | C9: 2020
A10: Ventas
A11: Ventas linea de negocio 1
A12: Ventas del Sector Publico | B12: 20845408485 | C12: 13742810113
A13: Venas del Sector Privado | B13: 33210625160 | C13: 6838490120
A14: Ingresos Extraordinarios | B14: 0 | C14: 0
A15: Exterior | B15: 0 | C15: 0
A16: Contado | B16: 0 | C16: 0
A17: Crédito | B17: 0 | C17: 0
A18: Ventas linea de negocio 2
A19: Local | B19: 0 | C19: 0
A20: Contado | B20: 0 | C20: 0
A21: Crédito | B21: 0 | C21: 0
A22: Exterior | B22: 0 | C22: 0
A23: Contado | B23: 0 | C23: 0
A24: Crédito | B24: 0 | C24: 0
A25: (nuevas lineas de negocio a incluir)
A26: Total | B26: 54056033645 | C26: 20581300233

Sheet Nota 26
A1: =Indice!C1 -> BIOTEC DEL PARAGUAY S.A. | E1: ER
A5: NOTA 26 - COSTO DE VENTAS
B8: Miles de guaraníes
A9: Costo de ventas | B9: 2021 | C9: 2020
A10: Linea de negocio 1
A11: Existencia inicial del inventario | B11: 24050116279 | C11: 14589293931
A12: + Compra de bienes y servicios | B12: 17562780426 | C12: 9460822348
A13: + Costo de producción | B13: 29101607167 | C13: 11041326511
A14: - Existencia final de inventario | B14: -41612896705 | C14: -24050116279
A15: Otros Ingresos Extraordinario | B15: 0 | C15: 0
A16: Linea de negocio 2
A17: Existencia inicial del inventario | B17: 0 | C17: 0
A18: + Compra de bienes y servicios | B18: 0 | C18: 0
A19: + Costo de producción | B19: 0 | C19: 0
A20: - Existencia final de inventario | B20: 0 | C20: 0
A21: (nuevas cuentas a incluir)
A22: Total costo de ventas | B22: 29101607167 | C22: 11041326511

Sheet Nota 27
A1: =Indice!C1 -> BIOTEC DEL PARAGUAY S.A. | G1: ER
A5: NOTA 27 - GASTOS
A7: El rubro está compuesto de la siguiente forma:
A9: Miles de guaraníes
C10: 2021 | F10: 2020
B11: Gastos de Ventas | C11: Gastos Administrativos | D11: Total | E11: Gastos de Ventas | F11: Gastos Administrativos | G11: Total
A12: Movilidad y viáticos | B12: 47605850 | C12: 10600975 | D12: 58206825 | E12: 48785655 | F12: 5198979 | G12: 53984634
A13: Gastos de alquiler | B13: 0 | C13: 229727269 | D13: 229727269 | E13: 0 | F13: 214729168 | G13: 214729168
A14: Computación y redes | B14: 218637 | C14: 722727 | D14: 941364 | E14: 0 | F14: 327727 | G14: 327727
A15: Gastos por servicios | B15: 185979474 | C15: 88842263 | D15: 274821737 | E15: 185898156 | F15: 86608726 | G15: 272506882
A16: Honorarios profesionales y asesoramiento | B16: 312282378 | C16: 279959764 | D16: 592242142 | E16: 267127360 | F16: 236625066 | G16: 503752426
A17: Investigación de mercado | B17: 0 | C17: 0 | D17: 0 | E17: 0 | F17: 0 | G17: 0
A18: Impuestos y tasas | B18: 3138764 | C18: 0 | D18: 3138764 | E18: 3075213 | F18: 0 | G18: 3075213
A19: Gastos de reparación y mantenimiento | B19: 104408546 | C19: 8179090 | D19: 112587636 | E19: 51227677 | F19: 14942452 | G19: 66170129
A20: Gastos del personal y capacitación | B20: 909091 | C20: 0 | D20: 909091 | E20: 0 | F20: 0 | G20: 0
A21: Seguros pagados | B21: 118886009 | C21: 9656339 | D21: 128542348 | E21: 107440632 | F21: 9683161 | G21: 117123793
A22: Otros gastos de operación | B22: 4999757079 | C22: 264244462 | D22: 5264001541 | E22: 715493222 | F22: 160238552 | G22: 875731774
A23: Remuneraciones de administradores, directores, síndicos y consejo de vigilancia | B23: 0 | C23: 975000000 | D23: 975000000 | E23: 0 | F23: 812500000 | G23: 812500000
A24: Sueldos y Jornales | B24: 1751681126 | C24: 388576427 | D24: 2140257553 | E24: 1350355791 | F24: 305459079 | G24: 1655814870
A25: Indemnizacion | B25: 49000000 | C25: 56833620 | D25: 105833620 | E25: 10833333 | F25: 0 | G25: 10833333
A26: Preaviso | B26: 54992720 | C26: 0 | D26: 54992720 | E26: 16250000 | F26: 0 | G26: 16250000
A27: Aporte Patronal | B27: 283340970 | C27: 286076206 | D27: 569417176 | E27: 180776556 | F27: 122380519 | G27: 303157075
A28: Aporte Ley 2051/03 Art 41 -DNCP | B28: 51821111 | C28: 0 | D28: 51821111 | E28: 38753773 | F28: 0 | G28: 38753773
A29: Comisiones Pagadas | B29: 1313492724 | C29: 0 | D29: 1313492724 | E29: 1265344165 | F29: 0 | G29: 1265344165
A30: Aguinaldos | B30: 240600318 | C30: 32381367 | D30: 272981685 | E30: 127524351 | F30: 25488620 | G30: 153012971
A31: Contribuciones Sociales | B31: 300000 | C31: 0 | D31: 300000 | E31: 300000 | F31: 0 | G31: 300000
A32: Regalías y Honorarios por servicios técnicos | B32: 0 | C32: 0 | D32: 0 | E32: 0 | F32: 0 | G32: 0
A33: Gastos de Publicidad y Propaganda | B33: 5533927 | C33: 0 | D33: 5533927 | E33: 17061367 | F33: 7918182 | G33: 24979549
A34: Intereses, multas y recargos impositivos | B34: 0 | C34: 0 | D34: 0 | E34: 0 | F34: 0 | G34: 0
A35: Multas por Incumplimiento - Licitacion | B35: 8488679 | C35: 0 | D35: 8488679 | E35: 2762889 | F35: 0 | G35: 2762889
A36: Depreciación bienes de uso | B36: 0 | C36: 1746089574 | D36: 1746089574 | E36: 0 | F36: 1542363641 | G36: 1542363641
A37: Amortización activos intangibles | B37: 0 | C37: 35361618 | D37: 35361618 | E37: 0 | F37: 17201643 | G37: 17201643
A38: Combutible y Lubricantes | B38: 171751814 | C38: 16246831 | D38: 187998645 | E38: 135476651 | F38: 6747189 | G38: 142223840
A39: Patente e Impuestos | B39: 31305238 | C39: 0 | D39: 31305238 | E39: 41741630 | F39: 0 | G39: 41741630
A40: Previsiones | B40: 0 | C40: 0 | D40: 0 | E40: 0 | F40: 0 | G40: 0
A41: (nuevas cuentas a incluir) | D41: 0 | G41: 0
A42: Total | B42: 9735494455 | C42: 4428498532 | D42: 14163992987 | E42: 4566228421 | F42: 3568412704 | G42: 8134641125

Sheet Nota 28
A1: =Indice!C1 -> BIOTEC DEL PARAGUAY S.A. | E1: ER
A4: Nota 28 - Otros Ingresos y gastos operativos
A6: Miles de guaraníes
A8: Otros ingresos | B8: 2021 | C8: 2020 | E8: Otros gastos | F8: 2021 | G8: 2020
A9: OTROS INGRESOS | B9: 49191323 | C9: 5797313 | E9: PERDIDA POR DIFERENCIA DE CAMBIO | F9: 2511134979 | G9: 592049960
A10: SOBRANTE EN CAJA | B10: 315101 | C10: 24842 | E10: PERDIDA POR MERCADERIAS VENCIDAS | F10: 716609819 | G10: 883949156
A11: INTERESES COBRADOS | B11: 11021232 | C11: 3588800 | E11: DIFERENCIA O FALTANTE EN CAJA | F11: -2198 | G11: 2866
A12: UTILIDAD - DIFERENCIA DE CAMBIO | B12: 2331846936 | C12: 526555764 | E12: AJUSTE DE INVENTARIO | F12: 957 | G12: 0
A13: INTERESES GANADOS | B13: 89662007 | C13: 14880420 | E13: COSTO DE ACTIVO FIJO | F13: 240000 | G13: 0
A14: DESCUENTOS OBTENIDOS | B14: 45148121 | C14: 17337750
A15: AJUSTE POR INVENTARIO | B15: 1231426792 | C15: 0
A16: VENTA DE ACTIVO FIJO | B16: 441620 | C16: 119927100
A17: Total | B17: 3759053132 | C17: 688111989 | E17: Total | F17: 3227983557 | G17: 1476001982

Sheet Nota 29
A1: =Indice!C1 -> BIOTEC DEL PARAGUAY S.A. | E1: ER
A5: NOTA 29 - INGRESOS Y GASTOS FINANCIEROS NETOS
A6: Miles de guaraníes
A8: Ingresos Financieros netos | B8: =IFERROR(IF(Indice!B6="","2XX2",YEAR(Indice!B6)),"2XX2") -> 2021 | C8: 2020 | E8: Gastos Financieros netos | F8: =IFERROR(IF(Indice!B6="","2XX2",YEAR(Indice!B6)),"2XX2") -> 2021 | G8: 2020
A9: OTROS INGRESOS | B9: 0 | C9: 0 | E9: PERDIDA POR DIFERENCIA DE CAMBIO | F9: 0 | G9: 0
A10: SOBRANTE EN CAJA | B10: 0 | C10: 0 | E10: PERDIDA POR MERCADERIAS VENCIDAS | F10: 0 | G10: 0
A11: INTERESES COBRADOS | B11: 0 | C11: 0
A12: UTILIDAD - DIFERENCIA DE CAMBIO | B12: 0 | C12: 0 | E12: DIFERENCIA O FALTANTE EN CAJA | F12: 0 | G12: 0
A13: INTERESES GANADOS | B13: 0 | C13: 0 | E13: AJUSTE DE INVENTARIO | F13: 0 | G13: 0
A14: DESCUENTOS OBTENIDOS | B14: 0 | C14: 0 | E14: Intereses a bancos e instituciones financieras | F14: 3084531453 | G14: 2403631486
A15: AJUSTE POR INVENTARIO | B15: 0 | C15: 0
A16: VENTA DE ACTIVO FIJO | B16: 0 | C16: 0
A18: Total ingresos financieros | B18: 0 | C18: 0 | E18: Total gastos financieros | F18: 3084531453 | G18: 2403631486

Sheet Nota 30
A1: =Indice!C1 -> BIOTEC DEL PARAGUAY S.A. | E1: ER
A4: Nota 30 - Resultado de inversiones en asociadas
A5: Miles de guaraníes
A8: Resultado de inversiones en asociadas | B8: 2021 | C8: 2020
A9: (Detallar cuenta) | B9: N/A | C9: N/A
A10: Total

Sheet Nota 31
A1: =Indice!C1 -> BIOTEC DEL PARAGUAY S.A. | E1: ER
A4: Nota 31 - Resultado participación minoritaria
A5: Miles de guaraníes
A8: Resultado participación minoritaria | B8: 2021 | C8: 2020
A9: (Detallar cuenta) | B9: N/A | C9: N/A
A10: Total | B10: 0 | C10: 0

Sheet Nota 32
A1: =Indice!C1 -> BIOTEC DEL PARAGUAY S.A. | E1: ER
A4: Nota 32 - IMPUESTO A LA RENTA
A5: En miles de guaraníes
B7: 2021 | C7: 2020
A8: Impuesto a la renta | B8: 0 | C8: 0
A14: Total | B14: =SUM($B8:B13) -> 0 | C14: =SUM($C8:C13) -> 0

Sheet Nota 33
A1: =Indice!C1 -> BIOTEC DEL PARAGUAY S.A. | E1: ER
A4: Nota 33 - Resultado extraordinario neto de impuesto a la renta
A5: En miles de guaraníes
B7: 2021 | C7: 2020
A8: Conceptos
A9: (Detallar) | B9: N/A | C9: N/A
A10: Total | B10: 0 | C10: 0

Sheet Nota 34
A1: =Indice!C1 -> BIOTEC DEL PARAGUAY S.A. | E1: ER
A4: Nota 34 - Resultado sobre actividades discontinuadas neto de impuesto a la renta
A5: En miles de guaraníes
A7: Resultado sobre actividades discontinuadas neto de impuesto a la renta | B7: 2021 | C7: 2020
A9: (nueva cuenta a incluir) | B9: N/A | C9: N/A
A10: Subtotal | B10: N/A | C10: N/A
A11: - Impuesto a la renta | B11: N/A | C11: N/A
A12: Total | B12: 0 | C12: 0

Sheet Nota 35
A1: =Indice!C1 -> BIOTEC DEL PARAGUAY S.A. | E1: ER
A4: NOTA 35- UTILIDAD (PÉRDIDA) NETA DEL AÑO Y POR ACCION ORDINARIA
A5: La Sociedad calcula la utilidad neta por acción sobre la base de la utilidad del año y 12.000 acciones ordinarias de voto múltiple de valor nominal G 1.000.000.- cada una con derecho a 5 votos por acción.
B7: 2021 | C7: 2020
A8: Cantidad de Acciones Ordinarias en Circulación | B8: 15000 | C8: 12000
A9: Utilidad Neta | B9: 8236971613 | C9: -1786188882
A10: Utilidad Neta por Acción Ordinaria | B10: 549131.4409 | C10: -148849.0735

Sheet Nota 36
A1: =Indice!C1 -> BIOTEC DEL PARAGUAY S.A. | E1: Indice
A4: NOTA 36 - ACTIVOS GRAVADOS
A6: Los siguientes bienes de propiedad de la Sociedad han sido hipotecados y prendados en garantía de obligaciones financieras.
A8: =IFERROR("Al "&DAY(Indice!B6)&" de "&VLOOKUP(MONTH(Indice!B6),Indice!S:T,2,0)&" de "&YEAR(Indice!B6-365),"Al dia... de mes… de año 2XX1…") -> Al 30 de Junio de 2020
A9: Tipo de Activo | B9: Datos del activo gravado | C9: Tipo de garantía | D9: Importe (indicar moneda) | E9: A favor de
A10: NO APLICABLE
A15: =IFERROR("Al "&DAY(Indice!B6)&" de "&VLOOKUP(MONTH(Indice!B6),Indice!S:T,2,0)&" de "&YEAR(Indice!B6-1),"Al dia... de mes… de año 2XX2…") -> Al 30 de Junio de 2021
A16: Tipo de Activo | B16: Datos del activo gravado | C16: Tipo de garantía | D16: Importe (indicar moneda) | E16: A favor de
A17: NO APLICABLE

Sheet Nota 37
A1: =Indice!C1 -> BIOTEC DEL PARAGUAY S.A. | E1: Indice
A4: NOTA 37 - CONTINGENCIAS Y COMPROMISOS
A5: (Esta nota debería incluir un breve detalle de contratos con terceros, vigente a la fecha de cierre del ejercicio, cuyo incumplimiento o cláusula específica podrían generar obligaciones contingentes para el cliente).
A6: =IFERROR("Los principales contratos suscriptos por la Sociedad, vigentes al "&DAY(Indice!B6)&" de "&VLOOKUP(MONTH(Indice!B6),Indice!S:T,2,0)&" de "&YEAR(Indice!B6-1)&" son:","Los principales contratos suscriptos por la Sociedad, vigentes al … de … 20X2 son:") -> Los principales contratos suscriptos por la Sociedad, vigentes al 30 de Junio de 2021 son:
A7: a) N/A
A8: b) N/A
A11: =IFERROR("Al "&DAY(Indice!B6)&" de "&VLOOKUP(MONTH(Indice!B6),Indice!S:T,2,0)&" de "&YEAR(Indice!B6-1)&" no existen situaciones contingentes, ni reclamos que pudieran resultar en la generación de obligaciones para la Sociedad adicionales a las que se presentan en estos estados financieros.","Al … de …………... 20X2 no existen situaciones contingentes, ni reclamos que pudieran resultar en la generación de obligaciones para la Sociedad adicionales a las que se presentan en estos estados financieros.") -> Al 30 de Junio de 2021 no existen situaciones contingentes, ni reclamos que pudieran resultar en la generación de obligaciones para la Sociedad adicionales a las que se presentan en estos estados financieros.
A15: Obs.: Esta información debe estar ajustada a lo requerido por la Norma de Información Financiera N° 5 Contingencias y sucesos que ocurren después de la fecha del balance.

Sheet Nota 38
A1: =Indice!C1 -> BIOTEC DEL PARAGUAY S.A. | D1: Índice
A4: NOTA 38 - IMPUESTO DIFERIDO
A5: En miles de guaraníes
A6: Al … de …........... 20X2 la Sociedad constituyó una provisión para impuesto a la renta de Guaraníes …... (Al … de …...............20X1: Guaraníes …....) / (La Sociedad no ha constituido provisión para impuesto a la renta, debido a que a esa fecha la misma generó renta imponible que fue compensada con quebrantos impositivos acumulados a esa fecha).
A7: La Sociedad contabiliza el impuesto a la renta por el método de lo diferido, método del pasivo. El mencionado método establece la determinación de activos o pasivos impositivos diferidos netos basados en las diferencias temporales y temporarias, con cargo a la línea Impuesto a la renta del Estado de resultados.
A9: El siguiente cuadro detalla las diferencias temporales a la tasa del impuesto a los efectos de determinación del impuesto diferido:
B11: =IFERROR(IF(Indice!B6="","2XX2",YEAR(Indice!B6)),"2XX2") -> 2021 | C11: =+IFERROR(YEAR(Indice!B6-365),"2XX1") -> 2020
A12: Activos y pasivos impositivos diferidos: | B12: N/A | C12: N/A
A13: Caja y Bancos | B13: N/A | C13: N/A
A14: Inversiones | B14: N/A | C14: N/A
A15: Previsión para deudores incobrables | B15: N/A | C15: N/A
A16: Bienes de uso | B16: N/A | C16: N/A
A17: Activos intangibles | B17: N/A | C17: N/A
A18: Previsión del pasivo | B18: N/A | C18: N/A
A19: Deudas comerciales y bancarias | B19: N/A | C19: N/A
A20: Bienes de cambio | B20: N/A | C20: N/A
A21: Sub - total | B21: N/A | C21: N/A
A22: Previsión para impuestos diferidos netos | B22: N/A | C22: N/A
A23: Total activo/pasivo impositivo diferido neto antes de quebrantos | B23: N/A | C23: N/A
A24: Quebranto impositivo | B24: N/A | C24: N/A
A25: Total

Sheet Nota 39
A1: =Indice!C1 -> BIOTEC DEL PARAGUAY S.A. | E1: Indice
A5: NOTA 39 - HECHOS POSTERIORES
A6: (En caso en que entre la fecha del cierre del ejercicio y la fecha de emisión de los estados financieros existan hechos posteriores significativos deberá evaluarse el tipo de hecho posterior del que se trate y modificar esta nota según corresponda).
A9: Entre la fecha de cierre del ejercicio y la fecha de preparación de estos estados financieros, no han ocurrido hechos significativos de carácter financiero o de otra índole que afecten la situación patrimonial o financiera o los resultados de la Sociedad al 31 de Marzo 2021.

Sheet Nota 40
A1: =Indice!C1 -> BIOTEC DEL PARAGUAY S.A. | C1: Indice
A5: NOTA 40 - SALDOS Y TRANSACCIONES CON PARTES RELACIONADAS
A6: Miles de guaraníes
B10: =IFERROR(IF(Indice!B6="","2XX2",YEAR(Indice!B6)),"2XX2") -> 2021 | C10: 2020
A11: ACTIVO | B11: N/A | C11: N/A
A12: Inversiones temporales | B12: N/A | C12: N/A
A13: Cuentas a cobrar comerciales | B13: N/A | C13: N/A
A14: Otros créditos | B14: N/A | C14: N/A
A15: Total activo | B15: N/A | C15: N/A
A16: PASIVO | B16: N/A | C16: N/A
A17: Cuentas por pagar comerciales | B17: N/A | C17: N/A
A18: Préstamos a corto plazo | B18: N/A | C18: N/A
A19: Provisiones | B19: N/A | C19: N/A
A20: Préstamos a largo plazo | B20: N/A | C20: N/A
A21: Otros pasivos | B21: N/A | C21: N/A
A22: Total pasivo | B22: N/A | C22: N/A
B26: =IFERROR(IF(Indice!B6="","2XX2",YEAR(Indice!B6)),"2XX2") -> 2021 | C26: 2019
A27: Costo de ventas | B27: N/A | C27: N/A
A28: Compras a …. | B28: N/A | C28: N/A
A30: Gastos administrativos | B30: N/A | C30: N/A
A31: Honorarios por servicios | B31: N/A | C31: N/A
A32: Otros | B32: N/A | C32: N/A
A33: Gastos financieros | B33: N/A | C33: N/A
A34: Intereses pagados por préstamos | B34: N/A | C34: N/A
